bitfinex/quotes_BTCUSD_20251110
["timestamp","ask_amount","ask_price","bid_price","bid_amount"]
[1762769614125,0.98783251,106360.0,106350.0,0.02859438]
[1762769614345,0.98783251,106360.0,106350.0,0.01316438]
[1762769618575,0.98783251,106360.0,106350.0,0.02859438]
[1762769618789,0.98783251,106360.0,106350.0,0.05278438]
[1762769619200,0.98783251,106360.0,106350.0,0.24084267]
[1762769619412,0.98783251,106360.0,106350.0,0.05278438]
[1762769620599,0.98783251,106360.0,106350.0,0.02859438]
[1762769620987,1.08039151,106360.0,106350.0,0.01316438]
[1762769627498,1.08039151,106360.0,106350.0,0.00087438]
[1762769633339,0.06569377,106340.0,106320.0,0.07994483]
[1762769633542,0.06569377,106340.0,106310.0,0.01282]
[1762769633543,0.18811136,106320.0,106310.0,0.01282]
[1762769633760,1.01421328,106320.0,106310.0,0.01282]
[1762769633997,1.01421328,106320.0,106310.0,0.05189]
[1762769634419,0.82610192,106320.0,106310.0,0.24001905]
[1762769634626,1.01421328,106320.0,106310.0,0.05189]
[1762769634838,1.01417328,106320.0,106310.0,0.24001905]
[1762769635046,0.1637555,106320.0,106310.0,0.24001905]
[1762769635292,0.39684698,106320.0,106310.0,0.24001905]
[1762769635509,0.39684698,106320.0,106310.0,0.24101905]
[1762769636566,0.76418247,106320.0,106310.0,0.05289]
[1762769636770,0.76418247,106320.0,106310.0,0.24101905]
[1762769636960,0.95229383,106320.0,106310.0,0.24101905]
[1762769637380,0.36733549,106320.0,106310.0,0.24101905]
[1762769637587,0.2163362,106330.0,106320.0,0.18811136]
[1762769637588,0.33115321,106330.0,106320.0,0.18811136]
[1762769637806,0.59446221,106340.0,106330.0,0.18809367]
[1762769637807,0.90805842,106340.0,106330.0,0.18809367]
[1762769638012,1.23921163,106340.0,106330.0,0.23958367]
[1762769638246,0.18809367,106330.0,106320.0,0.03624]
[1762769638464,0.18809367,106330.0,106320.0,0.22435136]
[1762769638753,0.18909367,106330.0,106320.0,0.23960136]
[1762769638958,0.18909367,106330.0,106320.0,0.05149]
[1762769639157,0.52024688,106330.0,106320.0,0.05149]
[1762769639391,0.52024688,106330.0,106320.0,0.05218905]
[1762769639777,0.65453089,106330.0,106320.0,0.05218905]
[1762769640626,0.65553089,106330.0,106320.0,0.05218905]
[1762769643636,0.55742916,106330.0,106320.0,0.05218905]
[1762769646434,0.55742916,106330.0,106320.0,0.02836905]
[1762769647519,0.55742916,106330.0,106320.0,0.05218905]
[1762769648149,0.55742916,106330.0,106320.0,0.02836905]
[1762769648358,0.88858237,106330.0,106320.0,0.02836905]
[1762769648973,0.91424198,106330.0,106320.0,0.01311905]
[1762769649752,0.88858237,106330.0,106320.0,0.00069905]
[1762769655674,0.90617159,106330.0,106320.0,0.00069905]
[1762769656044,1.22917159,106330.0,106320.0,0.00069905]
[1762769656822,0.56686517,106330.0,106320.0,0.00069905]
[1762769657031,0.89822711,106330.0,106320.0,0.00069905]
[1762769657240,0.99632884,106330.0,106320.0,0.00069905]
[1762769658402,0.89822711,106330.0,106320.0,0.00069905]
[1762769664787,0.88063789,106330.0,106320.0,0.00069905]
[1762769667399,0.54927595,106330.0,106320.0,0.00069905]
[1762769667580,0.88063789,106330.0,106320.0,0.00069905]
[1762769667939,0.54927595,106330.0,106320.0,0.00069905]
[1762769668164,0.88063789,106330.0,106320.0,0.00069905]
[1762769668367,0.06333062,106300.0,106290.0,0.23835479]
[1762769668906,0.06333062,106300.0,106290.0,0.25343479]
[1762769669558,0.06333062,106300.0,106290.0,0.25391586]
[1762769669761,0.06333062,106300.0,106290.0,0.26191586]
[1762769669970,0.06333062,106300.0,106290.0,0.28191586]
[1762769670498,0.06333062,106300.0,106290.0,0.28656586]
[1762769670672,0.06333062,106300.0,106290.0,0.30656586]
[1762769670875,0.06333062,106300.0,106290.0,0.28656586]
[1762769672185,0.06333062,106300.0,106290.0,0.30656586]
[1762769674102,0.06333062,106300.0,106290.0,0.3072652]
[1762769675285,0.06333062,106300.0,106290.0,0.2872652]
[1762769676384,0.07333062,106300.0,106290.0,0.2872652]
[1762769676719,0.07333062,106300.0,106290.0,0.3072652]
[1762769676925,0.07333062,106300.0,106290.0,0.2872652]
[1762769677129,0.07333062,106300.0,106290.0,0.3072652]
[1762769677349,0.07333062,106300.0,106290.0,0.2872652]
[1762769677874,0.07333062,106300.0,106290.0,0.3072652]
[1762769678067,0.07333062,106300.0,106290.0,0.2872652]
[1762769678246,0.07333062,106300.0,106290.0,0.63862714]
[1762769679067,0.07333062,106300.0,106290.0,0.61862714]
[1762769679234,0.07333062,106300.0,106290.0,0.63862714]
[1762769680040,0.07333062,106300.0,106290.0,0.61862714]
[1762769680287,0.07333062,106300.0,106290.0,0.63862714]
[1762769681727,0.07333062,106300.0,106290.0,0.61862714]
[1762769681926,0.07333062,106300.0,106290.0,0.63862714]
[1762769683225,0.07333062,106300.0,106290.0,0.61862714]
[1762769683469,0.07333062,106300.0,106290.0,0.63862714]
[1762769683975,0.07333062,106300.0,106290.0,0.61862714]
[1762769684434,0.07333062,106300.0,106290.0,0.63862714]
[1762769684631,0.07333062,106300.0,106290.0,0.61862714]
[1762769684832,0.07333062,106300.0,106290.0,0.2872652]
[1762769685036,0.07333062,106300.0,106290.0,0.61862714]
[1762769685426,0.07333062,106300.0,106290.0,0.63862714]
[1762769685816,0.07333062,106300.0,106290.0,0.61862714]
[1762769687410,0.07333062,106300.0,106290.0,0.63862714]
[1762769687614,0.07333062,106300.0,106290.0,0.61862714]
[1762769688269,0.07333062,106300.0,106290.0,0.63862714]
[1762769688724,0.07333062,106300.0,106290.0,0.61862714]
[1762769689325,0.07333062,106300.0,106290.0,0.63862714]
[1762769690385,0.07333062,106300.0,106290.0,0.61862714]
[1762769690603,0.07333062,106300.0,106290.0,0.63862714]
[1762769696685,0.07333062,106300.0,106290.0,0.3072652]
[1762769696892,0.07333062,106300.0,106290.0,0.63862714]
[1762769697965,0.07333062,106300.0,106290.0,0.61862714]
[1762769698174,0.07333062,106300.0,106290.0,0.2872652]
[1762769698376,0.07333062,106300.0,106290.0,0.63862714]
[1762769700936,0.07333062,106300.0,106290.0,0.61862714]
[1762769701143,0.07333062,106300.0,106290.0,0.63862714]
[1762769701382,0.07333062,106300.0,106290.0,0.61862714]
[1762769701601,0.07333062,106300.0,106290.0,0.63862714]
[1762769702189,0.07333062,106300.0,106290.0,0.61862714]
[1762769703014,0.07333062,106300.0,106290.0,0.63862714]
[1762769704241,0.07333062,106300.0,106290.0,0.3072652]
[1762769704416,0.07333062,106300.0,106290.0,0.63862714]
[1762769705199,0.07333062,106300.0,106290.0,0.61862714]
[1762769705518,0.07333062,106300.0,106290.0,0.63862714]
[1762769705832,0.07333062,106300.0,106290.0,0.61862714]
[1762769706027,0.07333062,106300.0,106290.0,0.63862714]
[1762769706751,0.07333062,106300.0,106290.0,0.61862714]
[1762769707185,0.07333062,106300.0,106290.0,0.63862714]
[1762769707778,0.07333062,106300.0,106290.0,0.61862714]
[1762769708129,0.07333062,106300.0,106290.0,0.63862714]
[1762769708319,0.07333062,106300.0,106290.0,0.61862714]
[1762769708904,0.07333062,106300.0,106290.0,0.63862714]
[1762769709935,0.07333062,106300.0,106290.0,0.61862714]
[1762769710566,0.07333062,106300.0,106290.0,0.63862714]
[1762769711295,0.07333062,106300.0,106290.0,0.61862714]
[1762769711493,0.07333062,106300.0,106290.0,0.63862714]
[1762769712106,0.07333062,106300.0,106290.0,0.94162714]
[1762769712314,0.07333062,106300.0,106290.0,0.96162714]
[1762769713298,0.07333062,106300.0,106290.0,0.6302652]
[1762769713504,0.07333062,106300.0,106290.0,0.94162714]
[1762769713704,0.07333062,106300.0,106290.0,0.96162714]
[1762769717701,0.07333062,106300.0,106290.0,0.6302652]
[1762769717886,0.07333062,106300.0,106290.0,0.96162714]
[1762769719094,0.07333062,106300.0,106290.0,0.9615359]
[1762769719485,0.07333062,106300.0,106290.0,1.2928066]
[1762769719930,0.00047023,106330.0,106310.0,0.18812905]
[1762769720114,0.39743465,106340.0,106330.0,0.21325367]
[1762769720335,0.58504045,106340.0,106330.0,0.21325367]
[1762769720466,0.59632045,106340.0,106330.0,0.02516]
[1762769720895,0.59679063,106340.0,106330.0,0.21325367]
[1762769721230,0.59632045,106340.0,106330.0,0.21325367]
[1762769721823,0.18809367,106330.0,106320.0,0.22283136]
[1762769722023,0.55902607,106330.0,106320.0,0.20017136]
[1762769722224,0.53551437,106330.0,106320.0,0.20017136]
[1762769722427,0.53551437,106330.0,106320.0,0.21588136]
[1762769722606,0.51936437,106330.0,106320.0,0.24076136]
[1762769723596,0.52036437,106330.0,106320.0,0.24076136]
[1762769723797,0.18909367,106330.0,106320.0,0.24076136]
[1762769724007,0.52036437,106330.0,106320.0,0.24076136]
[1762769725637,0.52010984,106330.0,106320.0,0.02777]
[1762769726751,0.52010984,106330.0,106320.0,0.21588136]
[1762769726952,0.18883914,106330.0,106320.0,0.21588136]
[1762769727193,0.52010984,106330.0,106320.0,0.24076136]
[1762769728159,0.18883914,106330.0,106320.0,0.24076136]
[1762769731054,0.52010984,106330.0,106320.0,0.24076136]
[1762769731254,0.3322707,106330.0,106320.0,0.24076136]
[1762769732430,0.52036437,106330.0,106320.0,0.24076136]
[1762769732637,0.3322707,106330.0,106320.0,0.24076136]
[1762769733941,0.001,106330.0,106320.0,0.24076136]
[1762769734144,0.001,106330.0,106320.0,0.90330276]
[1762769734411,0.001,106330.0,106320.0,0.57203206]
[1762769734657,0.001,106330.0,106320.0,0.26899666]
[1762769734861,0.001,106330.0,106320.0,0.62026736]
[1762769736864,0.001,106330.0,106320.0,0.95153806]
[1762769737276,0.001,106330.0,106320.0,1.27453806]
[1762769737479,0.001,106330.0,106320.0,1.25453806]
[1762769737993,0.001,106330.0,106320.0,1.27453806]
[1762769738197,0.06678774,106350.0,106340.0,0.18807598]
[1762769738410,0.06678774,106350.0,106340.0,0.21465598]
[1762769738599,0.06678774,106350.0,106340.0,0.23953598]
[1762769738799,0.06678774,106350.0,106340.0,0.26776623]
[1762769739425,0.06678774,106350.0,106340.0,0.26976623]
[1762769739597,0.07678774,106350.0,106340.0,0.26976623]
[1762769739796,0.07678774,106350.0,106340.0,0.28976623]
[1762769740233,0.07678774,106350.0,106340.0,0.26976623]
[1762769741010,0.07678774,106350.0,106340.0,0.28976623]
[1762769741760,0.07678774,106350.0,106340.0,0.26976623]
[1762769741761,0.01109397,106350.0,106340.0,0.26976623]
[1762769741960,0.01109397,106350.0,106340.0,0.60103693]
[1762769743525,0.01109397,106350.0,106340.0,0.26976623]
[1762769744177,0.01109397,106350.0,106340.0,0.93230763]
[1762769744348,0.01109397,106350.0,106340.0,1.25530763]
[1762769744689,0.01109397,106350.0,106340.0,1.27530763]
[1762769745343,0.01109397,106350.0,106340.0,1.60557833]
[1762769745736,0.01109397,106350.0,106340.0,1.60757833]
[1762769746141,0.01109397,106350.0,106340.0,1.60957833]
[1762769746337,0.01109397,106350.0,106340.0,1.27830763]
[1762769747309,0.01109397,106350.0,106340.0,1.60957833]
[1762769747514,0.01109397,106350.0,106340.0,1.27830763]
[1762769751569,0.01109397,106350.0,106340.0,0.59576623]
[1762769751742,0.01109397,106350.0,106340.0,1.27830763]
[1762769752745,0.01109397,106350.0,106340.0,1.25830763]
[1762769752950,0.01109397,106350.0,106340.0,1.27830763]
[1762769754286,0.01109397,106350.0,106340.0,1.25830763]
[1762769754630,0.01109397,106350.0,106340.0,1.27830763]
[1762769754883,0.01109397,106350.0,106340.0,1.25830763]
[1762769755085,0.01109397,106350.0,106340.0,1.27830763]
[1762769756190,0.01109397,106350.0,106340.0,1.25830763]
[1762769756502,0.01109397,106350.0,106340.0,1.27830763]
[1762769760399,0.01109397,106350.0,106340.0,1.25830763]
[1762769760826,0.01109397,106350.0,106340.0,1.27830763]
[1762769764069,0.01174992,106400.0,106390.0,0.18798759]
[1762769764275,0.34269483,106400.0,106390.0,0.21478759]
[1762769764484,0.33141483,106400.0,106390.0,0.23870759]
[1762769765561,0.33541483,106400.0,106390.0,0.23870759]
[1762769765761,0.33941483,106400.0,106390.0,0.23870759]
[1762769766356,0.52738475,106400.0,106390.0,0.23870759]
[1762769766798,0.33941483,106400.0,106390.0,0.23870759]
[1762769767007,0.52738475,106400.0,106390.0,0.23870759]
[1762769767574,0.33941483,106400.0,106390.0,0.23870759]
[1762769768424,0.00814413,106400.0,106390.0,0.23870759]
[1762769769624,0.00930824,106400.0,106390.0,0.23870759]
[1762769770471,0.00930824,106400.0,106390.0,0.26692627]
[1762769770790,0.00530824,106400.0,106390.0,0.26692627]
[1762769770990,0.00130824,106400.0,106390.0,0.26692627]
[1762769771248,0.19527816,106400.0,106390.0,0.26692627]
[1762769771769,0.00730824,106400.0,106390.0,0.26692627]
[1762769772501,0.00730824,106400.0,106390.0,0.28692627]
[1762769772702,0.00730824,106400.0,106390.0,0.26692627]
[1762769773631,0.19527816,106400.0,106390.0,0.26692627]
[1762769773766,0.52654886,106400.0,106390.0,0.26692627]
[1762769773969,0.55285886,106400.0,106390.0,0.22635627]
[1762769774395,0.55285886,106400.0,106390.0,0.03836868]
[1762769774548,0.18798759,106390.0,106380.0,0.22419344]
[1762769774753,0.6481505,106390.0,106370.0,0.23361407]
[1762769775009,0.29385132,106390.0,106380.0,0.21622558]
[1762769775310,0.18800526,106380.0,106370.0,0.23361407]
[1762769775486,0.29385132,106390.0,106370.0,0.26183718]
[1762769775869,0.18800526,106380.0,106370.0,0.26183718]
[1762769776277,0.18800526,106380.0,106370.0,0.27848718]
[1762769776692,0.51927596,106380.0,106370.0,0.27848718]
[1762769777098,0.27882132,106390.0,106370.0,0.27848718]
[1762769777313,0.51927596,106380.0,106370.0,0.27848718]
[1762769777530,0.27882132,106390.0,106380.0,0.18800526]
[1762769777714,0.58495206,106390.0,106380.0,0.18800526]
[1762769778027,0.58542202,106390.0,106380.0,0.18800526]
[1762769778175,0.58495206,106390.0,106380.0,0.20027526]
[1762769779017,0.58595206,106390.0,106380.0,0.20027526]
[1762769779838,0.58795206,106390.0,106380.0,0.20027526]
[1762769780023,0.58888343,106390.0,106380.0,0.20027526]
[1762769780433,0.18800526,106380.0,106370.0,0.04049311]
[1762769780631,0.54558596,106380.0,106370.0,0.04049311]
[1762769780839,0.19928526,106380.0,106370.0,0.26908604]
[1762769782919,0.53021535,106380.0,106370.0,0.24086293]
[1762769785776,0.53091395,106380.0,106370.0,0.02892]
[1762769785905,0.53138396,106380.0,106370.0,0.24030293]
[1762769786110,0.53091395,106380.0,106370.0,0.24030293]
[1762769787901,0.34290869,106380.0,106370.0,0.24030293]
[1762769788256,0.53091395,106380.0,106370.0,0.24030293]
[1762769788469,0.34290869,106380.0,106370.0,0.24030293]
[1762769788689,0.53091395,106380.0,106370.0,0.24030293]
[1762769789140,0.19998386,106380.0,106370.0,0.24030293]
[1762769789814,0.0119786,106380.0,106370.0,0.24030293]
[1762769790199,0.19998386,106380.0,106370.0,0.24030293]
[1762769790777,0.23966386,106380.0,106370.0,0.20029293]
[1762769790978,0.57059395,106380.0,106370.0,0.68802293]
[1762769791484,0.54660395,106380.0,106370.0,0.68802293]
[1762769791659,0.53091395,106380.0,106370.0,0.73823293]
[1762769793048,0.34290869,106380.0,106370.0,0.73823293]
[1762769793249,0.53091395,106380.0,106370.0,0.73823293]
[1762769793583,0.54660395,106380.0,106370.0,0.69985293]
[1762769793905,0.53091395,106380.0,106370.0,0.69985293]
[1762769794084,0.19998386,106380.0,106370.0,0.73823293]
[1762769794261,0.53091395,106380.0,106370.0,0.73823293]
[1762769795388,0.53091395,106380.0,106370.0,0.52685]
[1762769795593,0.53091395,106380.0,106370.0,0.71487293]
[1762769796332,0.34290869,106380.0,106370.0,0.71487293]
[1762769796555,0.0006986,106380.0,106370.0,0.73823293]
[1762769799738,0.0006986,106380.0,106370.0,1.08916302]
[1762769800554,0.0006986,106380.0,106370.0,1.06916302]
[1762769800719,0.0006986,106380.0,106370.0,1.08916302]
[1762769800919,0.0106986,106380.0,106370.0,1.06916302]
[1762769801119,0.0106986,106380.0,106370.0,1.08916302]
[1762769801609,0.0106986,106380.0,106370.0,0.73823293]
[1762769804378,0.0106986,106380.0,106370.0,1.06916302]
[1762769804773,0.0006986,106380.0,106370.0,1.06916302]
[1762769807823,0.0006986,106380.0,106370.0,1.08916302]
[1762769808348,0.0006986,106380.0,106370.0,1.06916302]
[1762769808653,0.0006986,106380.0,106370.0,1.08916302]
[1762769811275,0.0006986,106380.0,106370.0,1.06916302]
[1762769812389,0.0006986,106380.0,106370.0,1.08916302]
[1762769813569,0.0006986,106380.0,106370.0,1.06916302]
[1762769813771,0.0006986,106380.0,106370.0,1.08916302]
[1762769815443,0.0006986,106380.0,106370.0,1.06916302]
[1762769815792,0.0006986,106380.0,106370.0,1.08916302]
[1762769815994,0.0006986,106380.0,106370.0,1.11738316]
[1762769817005,0.0006986,106380.0,106370.0,0.76645307]
[1762769817254,0.0006986,106380.0,106370.0,1.09738316]
[1762769817413,0.0006986,106380.0,106370.0,1.11738316]
[1762769819165,0.0006986,106380.0,106370.0,1.09738316]
[1762769819351,0.0006986,106380.0,106370.0,1.11738316]
[1762769820586,0.0006986,106380.0,106370.0,0.78645307]
[1762769820752,0.0006986,106380.0,106370.0,1.09738316]
[1762769821861,0.0006986,106380.0,106370.0,1.11738316]
[1762769822066,0.0006986,106380.0,106370.0,0.76645307]
[1762769822255,0.0006986,106380.0,106370.0,1.09738316]
[1762769822450,0.0006986,106380.0,106370.0,1.11738316]
[1762769822651,0.0006986,106380.0,106370.0,1.09738316]
[1762769823813,0.0006986,106380.0,106370.0,1.11738316]
[1762769824331,0.0006986,106380.0,106370.0,1.09738316]
[1762769824774,0.0006986,106380.0,106370.0,1.11738316]
[1762769824976,0.0006986,106380.0,106370.0,1.09738316]
[1762769825329,0.0006986,106380.0,106370.0,1.11738316]
[1762769826451,0.0006986,106380.0,106370.0,1.09738316]
[1762769826655,0.0006986,106380.0,106370.0,1.11738316]
[1762769826799,0.0006986,106380.0,106370.0,1.09738316]
[1762769827004,0.0006986,106380.0,106370.0,0.78645307]
[1762769827227,0.0006986,106380.0,106370.0,1.11738316]
[1762769827860,0.0006986,106380.0,106370.0,1.09738316]
[1762769828062,0.0006986,106380.0,106370.0,1.11738316]
[1762769828666,0.0006986,106380.0,106370.0,1.09738316]
[1762769828808,0.0006986,106380.0,106370.0,1.11738316]
[1762769829829,0.0006986,106380.0,106370.0,1.09738316]
[1762769830871,0.0006986,106380.0,106370.0,1.11738316]
[1762769834014,0.0006986,106380.0,106370.0,1.42038316]
[1762769834210,0.0006986,106380.0,106370.0,1.44038316]
[1762769834785,0.00014413,106400.0,106390.0,0.18798759]
[1762769834993,0.00014413,106400.0,106390.0,0.57376529]
[1762769835340,0.00014413,106400.0,106390.0,0.58799768]
[1762769836651,0.00214413,106400.0,106390.0,0.58799768]
[1762769836872,0.00514413,106400.0,106390.0,0.58799768]
[1762769837076,0.00514413,106400.0,106390.0,0.56799768]
[1762769837280,0.00214413,106400.0,106390.0,0.58799768]
[1762769837411,0.00214413,106400.0,106390.0,0.56799768]
[1762769837614,0.00314413,106400.0,106390.0,0.58799768]
[1762769837825,0.00314413,106400.0,106390.0,0.56799768]
[1762769838230,0.00314413,106400.0,106390.0,0.59974751]
[1762769838434,0.00314413,106400.0,106390.0,0.92274751]
[1762769839256,0.00014413,106400.0,106390.0,0.92274751]
[1762769840497,0.0006097,106400.0,106390.0,0.92274751]
[1762769840877,0.0006097,106400.0,106390.0,1.25298918]
[1762769841850,0.0006097,106400.0,106390.0,1.23298918]
[1762769842055,0.0006097,106400.0,106390.0,1.25298918]
[1762769844077,0.0006097,106400.0,106390.0,1.23298918]
[1762769844272,0.0006097,106400.0,106390.0,0.9224033]
[1762769844525,0.0006097,106400.0,106390.0,0.9024033]
[1762769844730,0.0006097,106400.0,106390.0,0.57181742]
[1762769844890,0.0006097,106400.0,106390.0,0.9024033]
[1762769845090,0.0006097,106400.0,106390.0,0.24881742]
[1762769845290,0.0006097,106400.0,106390.0,0.5794033]
[1762769845531,0.0006097,106400.0,106390.0,0.5814033]
[1762769845710,0.0006097,106400.0,106390.0,0.5824033]
[1762769845910,0.0006097,106400.0,106390.0,0.6024033]
[1762769846132,0.0006097,106400.0,106390.0,0.5824033]
[1762769846333,0.0006097,106400.0,106390.0,1.25598918]
[1762769847343,0.0006097,106400.0,106390.0,0.9054033]
[1762769847884,0.0006097,106400.0,106390.0,0.9254033]
[1762769850351,0.0006097,106400.0,106390.0,0.5824033]
[1762769850512,0.0006097,106400.0,106390.0,0.6024033]
[1762769852343,0.0006097,106400.0,106390.0,0.5824033]
[1762769852552,0.0006097,106400.0,106390.0,0.25181742]
[1762769852765,0.0006097,106400.0,106390.0,0.5824033]
[1762769853088,0.0006097,106400.0,106390.0,0.6024033]
[1762769854057,0.0006097,106400.0,106390.0,0.5824033]
[1762769854258,0.0006097,106400.0,106390.0,0.25181742]
[1762769854793,0.18857962,106400.0,106390.0,0.25181742]
[1762769854995,0.0006097,106400.0,106390.0,0.25181742]
[1762769855408,0.0006097,106400.0,106390.0,0.27181742]
[1762769856551,0.0006097,106400.0,106390.0,0.6024033]
[1762769858222,0.0006097,106400.0,106390.0,0.5824033]
[1762769858528,0.0006097,106400.0,106390.0,0.6024033]
[1762769858849,0.0006097,106400.0,106390.0,0.5824033]
[1762769859055,0.0006097,106400.0,106390.0,0.27181742]
[1762769859253,0.0006097,106400.0,106390.0,0.6024033]
[1762769861627,0.0006097,106400.0,106390.0,0.5824033]
[1762769862181,0.0006097,106400.0,106390.0,0.6024033]
[1762769862604,0.0006097,106400.0,106390.0,0.5824033]
[1762769862967,0.0006097,106400.0,106390.0,0.6024033]
[1762769863779,0.0006097,106400.0,106390.0,0.5824033]
[1762769865212,0.0006097,106400.0,106390.0,0.6024033]
[1762769865413,0.0006097,106400.0,106390.0,0.5824033]
[1762769866720,0.0006097,106400.0,106390.0,0.6024033]
[1762769866907,0.0006097,106400.0,106390.0,0.27181742]
[1762769867116,0.0006097,106400.0,106390.0,0.5824033]
[1762769867541,0.0006097,106400.0,106390.0,0.6024033]
[1762769867742,0.0006097,106400.0,106390.0,0.5824033]
[1762769867942,0.18857962,106400.0,106390.0,0.5824033]
[1762769868371,0.0006097,106400.0,106390.0,0.5824033]
[1762769868569,0.18857962,106400.0,106390.0,0.5824033]
[1762769869181,0.0006097,106400.0,106390.0,0.5824033]
[1762769869831,0.0006097,106400.0,106390.0,0.6024033]
[1762769870022,0.0006097,106400.0,106390.0,0.5824033]
[1762769872467,0.0006097,106400.0,106390.0,0.6024033]
[1762769872672,0.0006097,106400.0,106390.0,0.5824033]
[1762769873313,0.0006097,106400.0,106390.0,0.6024033]
[1762769873527,0.0006097,106400.0,106390.0,0.5824033]
[1762769874251,0.0006097,106400.0,106390.0,0.6024033]
[1762769874448,0.0006097,106400.0,106390.0,0.5824033]
[1762769874601,0.18857962,106400.0,106390.0,0.5824033]
[1762769875005,0.18857962,106400.0,106390.0,0.25181742]
[1762769875246,0.18857962,106400.0,106390.0,0.5824033]
[1762769876059,0.18857962,106400.0,106390.0,0.25181742]
[1762769877380,0.0006097,106400.0,106390.0,0.25181742]
[1762769878190,0.18857962,106400.0,106390.0,0.25181742]
[1762769878406,0.0006097,106400.0,106390.0,0.25181742]
[1762769878764,0.18857962,106400.0,106390.0,0.25181742]
[1762769879138,0.60781364,106400.0,106390.0,0.02856]
[1762769879278,0.5695855,106400.0,106390.0,0.003]
[1762769879898,0.5695855,106400.0,106380.0,0.2504193]
[1762769880238,0.25368136,106390.0,106380.0,0.2504193]
[1762769880463,0.58426724,106390.0,106380.0,0.2504193]
[1762769880644,0.28009136,106390.0,106380.0,0.19780916]
[1762769881002,0.07697377,106390.0,106380.0,0.23769916]
[1762769881390,0.07697377,106390.0,106380.0,0.23869916]
[1762769882152,0.07697377,106390.0,106380.0,0.24069916]
[1762769882358,0.26496136,106390.0,106380.0,0.24069916]
[1762769882559,0.26496136,106390.0,106380.0,0.23869916]
[1762769882710,0.26496136,106390.0,106380.0,0.24069916]
[1762769882913,0.07697377,106390.0,106380.0,0.24069916]
[1762769883672,0.26496136,106390.0,106380.0,0.24069916]
[1762769883873,0.07697377,106390.0,106380.0,0.24069916]
[1762769884439,0.07507377,106390.0,106380.0,0.24069916]
[1762769885405,0.07530658,106390.0,106380.0,0.24069916]
[1762769889967,0.26329417,106390.0,106380.0,0.24069916]
[1762769891504,0.26329417,106390.0,106380.0,0.21630916]
[1762769891711,0.27842417,106390.0,106380.0,0.20080916]
[1762769891905,0.30243417,106390.0,106380.0,0.19098916]
[1762769892782,0.30243417,106390.0,106380.0,0.19100526]
[1762769893479,0.42102246,106390.0,106380.0,0.20317526]
[1762769894023,0.60901005,106390.0,106380.0,0.20317526]
[1762769894584,0.27842417,106390.0,106380.0,0.20317526]
[1762769896607,0.09043658,106390.0,106380.0,0.20317526]
[1762769897100,0.27842417,106390.0,106380.0,0.20317526]
[1762769898231,0.09043658,106390.0,106380.0,0.20317526]
[1762769898465,0.07530658,106390.0,106380.0,0.21867526]
[1762769898638,0.40589246,106390.0,106380.0,0.21867526]
[1762769898889,0.59388005,106390.0,106380.0,0.21867526]
[1762769899269,0.40589246,106390.0,106380.0,0.21867526]
[1762769899785,0.59388005,106390.0,106380.0,0.21867526]
[1762769901456,0.26329417,106390.0,106380.0,0.21867526]
[1762769901868,0.26329417,106390.0,106380.0,0.24132526]
[1762769902072,0.07530658,106390.0,106380.0,0.24132526]
[1762769902566,0.07530658,106390.0,106380.0,0.21867526]
[1762769902773,0.26329417,106390.0,106380.0,0.21867526]
[1762769902972,0.07530658,106390.0,106380.0,0.21867526]
[1762769903359,0.07530658,106390.0,106380.0,0.24132526]
[1762769903787,0.26329417,106390.0,106380.0,0.24132526]
[1762769908274,0.07530658,106390.0,106380.0,0.24132526]
[1762769908823,0.26329417,106390.0,106380.0,0.24132526]
[1762769910121,0.07530658,106390.0,106380.0,0.24132526]
[1762769910317,0.26329417,106390.0,106380.0,0.24132526]
[1762769913263,0.27910417,106390.0,106380.0,0.20317526]
[1762769913468,0.27910417,106390.0,106380.0,0.19100526]
[1762769913469,0.30205417,106390.0,106380.0,0.19100526]
[1762769914370,0.30205417,106390.0,106380.0,0.18900526]
[1762769914707,0.30305417,106390.0,106380.0,0.18900526]
[1762769914923,0.30305417,106390.0,106380.0,0.18800526]
[1762769915326,0.30505417,106390.0,106380.0,0.18800526]
[1762769915727,0.30505417,106390.0,106370.0,0.73190407]
[1762769915929,0.30552413,106390.0,106380.0,0.18800526]
[1762769916129,0.30505417,106390.0,106380.0,0.18800526]
[1762769916557,0.30305417,106390.0,106380.0,0.18800526]
[1762769916753,0.30205417,106390.0,106380.0,0.18800526]
[1762769916963,0.18800526,106380.0,106370.0,0.73190407]
[1762769917309,0.18800526,106380.0,106370.0,0.74847407]
[1762769917533,0.23859591,106380.0,106370.0,0.5]
[1762769917744,0.60507033,106380.0,106370.0,0.5]
[1762769918364,0.27422754,106380.0,106370.0,0.68802293]
[1762769918548,0.27422754,106380.0,106370.0,0.5]
[1762769918753,0.27622754,106380.0,106370.0,0.5]
[1762769919074,0.27622754,106380.0,106370.0,0.68802293]
[1762769919269,0.27622754,106380.0,106370.0,0.5]
[1762769920723,0.27722754,106380.0,106370.0,0.5]
[1762769922324,0.60807033,106380.0,106370.0,0.5]
[1762769923539,0.69807645,106380.0,106370.0,0.5]
[1762769923888,0.60807033,106380.0,106370.0,0.5]
[1762769925479,0.93891312,106380.0,106370.0,0.5]
[1762769925680,0.60807033,106380.0,106370.0,0.5]
[1762769925885,0.63630016,106380.0,106370.0,0.5]
[1762769928963,0.96714295,106380.0,106370.0,0.5]
[1762769929157,0.63630016,106380.0,106370.0,0.5]
[1762769929406,0.78150016,106380.0,106370.0,0.5]
[1762769929598,0.63630016,106380.0,106370.0,0.5]
[1762769936236,0.30545737,106380.0,106370.0,0.5]
[1762769936487,0.63630016,106380.0,106370.0,0.5]
[1762769942112,0.65760062,106380.0,106370.0,0.5]
[1762769942515,0.32675783,106380.0,106370.0,0.5]
[1762769942681,0.65760062,106380.0,106370.0,0.5]
[1762769943189,0.65560062,106380.0,106370.0,0.5]
[1762769943613,2.08578641,106380.0,106370.0,0.5]
[1762769943782,1.81332642,106380.0,106370.0,0.5]
[1762769943980,1.81632642,106380.0,106370.0,0.5]
[1762769945290,1.81585641,106380.0,106370.0,0.5]
[1762769945626,1.81632642,106380.0,106370.0,0.5]
[1762769946317,1.29361296,106380.0,106370.0,0.5]
[1762769946515,1.29314295,106380.0,106370.0,0.5]
[1762769951317,0.96230016,106380.0,106370.0,0.5]
[1762769951682,1.29314295,106380.0,106370.0,0.5]
[1762769964798,0.63145737,106380.0,106370.0,0.5]
[1762769965005,1.29354121,106380.0,106370.0,0.5]
[1762769965997,1.39164294,106380.0,106370.0,0.5]
[1762769966800,1.29354121,106380.0,106370.0,0.5]
[1762769967196,0.63145737,106380.0,106370.0,0.5]
[1762769967401,1.29354121,106380.0,106370.0,0.5]
[1762769969374,0.63145737,106380.0,106370.0,0.5]
[1762769969549,1.29354121,106380.0,106370.0,0.5]
[1762769971443,1.39164294,106380.0,106370.0,0.5]
[1762769972436,1.29354121,106380.0,106370.0,0.5]
[1762769976361,0.03422983,106380.0,106370.0,0.73883293]
[1762769976509,0.03422983,106380.0,106370.0,1.06987485]
[1762769976725,0.03422983,106380.0,106370.0,1.08987485]
[1762769976925,0.006,106380.0,106370.0,1.06987485]
[1762769977125,0.006,106380.0,106370.0,1.08987485]